bitfinex-derivatives/quotes_SOLF0:USTF0_20251222
["timestamp","ask_amount","ask_price","bid_price","bid_amount"]
[1766406273481,0.05357801,127.32,127.29,6.3]
[1766406273673,0.05357801,127.32,127.29,6.35214264]
[1766406274982,1.51385803,127.32,127.29,0.05214264]
[1766406275182,1.51385803,127.32,127.27,6.4]
[1766406275584,8.58605803,127.32,127.27,6.4]
[1766406275781,1.46028002,127.3,127.27,6.4]
[1766406275986,1.46028002,127.3,127.25,6.75]
[1766406276171,0.05900031,127.29,127.26,0.05835951]
[1766406282387,7.13290031,127.29,127.25,6.75]
[1766406283479,7.13290031,127.29,127.26,0.05100397]
[1766406284986,6.72,127.26,127.17,10.03648387]
[1766406285292,6.72,127.26,127.17,2.82356291]
[1766406285891,0.0543642,127.23,127.2,0.05067924]
[1766406286484,7.1315642,127.23,127.2,0.05067924]
[1766406287080,0.0043642,127.23,127.2,6.80067924]
[1766406294898,0.0043642,127.23,127.2,0.05067924]
[1766406298901,0.0043642,127.23,127.2,6.80067924]
[1766406301398,99.4,127.27,127.21,6.75]
[1766406301602,92.68,127.27,127.21,6.75]
[1766406301793,9.35790087,127.28,127.21,6.75]
[1766406302302,16.07680087,127.3,127.23,6.75]
[1766406302504,0.05240859,127.28,127.25,0.05579554]
[1766406305801,0.00240859,127.28,127.25,7.37579554]
[1766406307706,0.00240859,127.28,127.25,14.45189554]
[1766406308006,0.00240859,127.28,127.26,7.32]
[1766406309297,6.87,127.35,127.26,7.32]
[1766406309903,13.9407,127.35,127.26,7.32]
[1766406310405,0.05857306,127.32,127.29,0.05279355]
[1766406313210,9.21167393,127.32,127.26,7.32]
[1766406313416,0.05857306,127.32,127.26,7.32]
[1766406314108,0.05857306,127.32,127.28,0.05893703]
[1766406316515,6.92857306,127.32,127.23,7.32]
[1766406316812,2.28310087,127.26,127.21,7.32]
[1766406317003,9.35870087,127.26,127.21,7.32]
[1766406317613,0.05936604,127.25,127.22,0.05095988]
[1766406327015,0.05936604,127.25,127.22,7.37095988]
[1766406330720,7.18,127.3,127.22,7.37095988]
[1766406330918,7.18,127.3,127.22,7.32]
[1766406331616,7.0744,127.28,127.22,7.32]
[1766406331923,0.0550519,127.26,127.24,0.05038477]
[1766406334819,14.2544,127.29,127.24,0.05038477]
[1766406335421,7.18,127.29,127.24,0.05038477]
[1766406335812,7.0733,127.3,127.24,7.05038477]
[1766406336119,0.05161757,127.28,127.24,7.05038477]
[1766406337723,7.01,127.31,127.25,7.0]
[1766406338223,14.0834,127.3,127.23,7.0]
[1766406338618,0.05631008,127.28,127.25,0.05780855]
[1766406339626,0.05631008,127.28,127.25,7.05780855]
[1766406340009,14.0826,127.32,127.25,7.05780855]
[1766406340214,14.0826,127.32,127.26,1.460828]
[1766406341112,0.04761559,127.3,127.28,0.05631642]
[1766406341522,14.0816,127.34,127.28,1.51714442]
[1766406341719,14.0816,127.34,127.27,7.0]
[1766406341720,15.542428,127.34,127.27,7.0]
[1766406342524,15.542428,127.34,127.29,0.05868427]
[1766406343021,7.01,127.33,127.29,0.05868427]
[1766406350124,1.460828,127.32,127.29,0.05868427]
[1766406351623,1.460828,127.34,127.29,0.05868427]
[1766406351817,1.460828,127.34,127.29,7.05868427]
[1766406352022,8.470828,127.35,127.29,7.05868427]
[1766406355334,7.01,127.35,127.29,7.05868427]
[1766406356334,8.470828,127.35,127.29,0.05868427]
[1766406356936,8.470828,127.34,127.29,0.05868427]
[1766406357136,8.470828,127.34,127.3,0.05423861]
[1766406357832,1.460828,127.32,127.3,0.00423861]
[1766406358031,1.460828,127.32,127.27,7.0]
[1766406359029,0.05325046,127.31,127.28,0.05613648]
[1766406360435,7.06325046,127.31,127.24,14.0762]
[1766406360641,7.01,127.31,127.25,7.0]
[1766406361535,7.01,127.31,127.25,14.076]
[1766406361740,0.0510945,127.29,127.27,0.05777336]
[1766406362244,8.470828,127.28,127.22,7.0]
[1766406363034,7.01,127.25,127.24,0.00066639]
[1766406363233,1.460828,127.24,127.18,7.0]
[1766406363538,8.470828,127.27,127.18,7.0]
[1766406364130,110.0286,127.31,127.18,7.0]
[1766406364131,0.05722783,127.24,127.21,7.05838224]
[1766406364333,1.460828,127.3,127.22,7.0]
[1766406364637,1.460828,127.3,127.24,7.0]
[1766406365235,0.05586902,127.28,127.26,0.04985872]
[1766406365942,7.01,127.31,127.26,0.04985872]
[1766406366527,101.213128,127.32,127.26,0.04985872]
[1766406366528,92.68,127.32,127.26,7.67985872]
[1766406366729,8.860828,127.33,127.26,7.67985872]
[1766406366939,0.05115382,127.31,127.26,7.67985872]
[1766406367329,0.05115382,127.31,127.27,7.63]
[1766406368239,0.05115382,127.31,127.27,14.7047]
[1766406368541,0.00115382,127.31,127.28,7.63]
[1766406370147,94.140828,127.36,127.29,7.63]
[1766406370344,15.930628,127.37,127.29,7.63]
[1766406371030,14.4701,127.36,127.29,7.63]
[1766406371239,0.05456417,127.34,127.31,0.05670692]
[1766406371844,1.460828,127.33,127.27,7.63]
[1766406372051,7.4,127.3,127.23,7.21292096]
[1766406372339,7.4,127.3,127.23,7.63]
[1766406372542,1.460828,127.31,127.23,7.63]
[1766406372743,7.4,127.32,127.23,7.63]
[1766406372943,0.05360013,127.28,127.26,0.05464989]
[1766406376944,0.05360013,127.28,127.23,7.63]
[1766406377645,1.460828,127.27,127.21,100.33]
[1766406378046,0.05644821,127.25,127.23,0.06040447]
[1766406383642,1.460828,127.27,127.23,0.06040447]
[1766406384540,8.860828,127.27,127.23,0.06040447]
[1766406384741,0.05071654,127.26,127.23,0.06040447]
[1766406387251,1.460828,127.25,127.19,100.35]
[1766406387453,8.860828,127.25,127.19,100.35]
[1766406387652,8.860828,127.25,127.19,7.63]
[1766406387853,15.937028,127.25,127.17,7.63]
[1766406388551,0.05183847,127.22,127.2,0.05318325]
[1766406391458,0.05183847,127.22,127.17,14.7105]
[1766406391654,0.05183847,127.22,127.17,7.63]
[1766406392562,0.05183847,127.22,127.18,0.05205174]
[1766406394767,1.460828,127.21,127.18,0.05205174]
[1766406401565,0.05183847,127.22,127.18,0.05205174]
[1766406407187,0.05183847,127.22,127.19,7.0792]
[1766406407377,7.49,127.26,127.18,7.10205174]
[1766406407579,7.49,127.26,127.18,7.05]
[1766406408484,0.05584084,127.23,127.21,0.05200376]
[1766406408785,7.49,127.26,127.21,0.05200376]
[1766406409977,0.05396935,127.25,127.21,0.05200376]
[1766406414281,0.05396935,127.25,127.21,7.10200376]
[1766406416488,0.05396935,127.25,127.21,14.18020376]
[1766406416689,0.05396935,127.25,127.22,7.05]
[1766406416874,92.7,127.28,127.22,7.05]
[1766406417786,0.05535633,127.26,127.24,0.06031055]
[1766406422179,0.05535633,127.26,127.24,0.00031055]
[1766406422180,7.54535633,127.26,127.24,0.00031055]
[1766406422381,7.54535633,127.26,127.2,7.05]
[1766406423489,7.54535633,127.26,127.22,0.05536717]
[1766406425690,0.05535633,127.26,127.22,7.24536717]
[1766406430402,0.05535633,127.26,127.22,14.32306717]
[1766406432003,6.94535633,127.26,127.22,0.05536717]
[1766406451608,0.05535633,127.26,127.22,14.30296717]
[1766406454810,6.94535633,127.26,127.22,0.05536717]
[1766406476725,6.98,127.25,127.18,106.82292096]
[1766406477429,6.98,127.25,127.19,7.21292096]
[1766406477628,0.05343017,127.23,127.21,0.05867438]
[1766406479717,7.03343017,127.23,127.19,7.0793]
[1766406480732,7.03343017,127.23,127.2,0.0561765]
[1766406480926,0.05343017,127.23,127.2,7.0361765]
[1766406482238,0.05343017,127.23,127.2,0.0561765]
[1766406495942,6.57,127.27,127.21,6.68]
[1766406496252,6.57,127.28,127.21,6.68]
[1766406497045,0.0496813,127.26,127.23,0.0603076]
[1766406497229,0.05794324,127.26,127.23,0.05556288]
[1766406498340,6.62794324,127.26,127.23,0.05556288]
[1766406498945,6.62794324,127.26,127.2,7.0783]
[1766406499937,6.62794324,127.26,127.22,0.05134941]
[1766406500141,0.05794324,127.26,127.22,6.73134941]
[1766406501641,0.05794324,127.26,127.22,13.80894941]
[1766406502143,0.05794324,127.26,127.22,6.73134941]
[1766406503345,0.05794324,127.26,127.22,13.80904941]
[1766406504950,0.05794324,127.26,127.23,6.68]
[1766406505449,0.05794324,127.26,127.22,0.05134941]
[1766406506751,0.05794324,127.26,127.22,6.73134941]
[1766406507247,13.6438,127.3,127.22,6.73134941]
[1766406507549,6.57,127.29,127.22,6.68]
[1766406508341,0.0566628,127.27,127.24,0.05750757]
[1766406512272,0.0566628,127.27,127.24,7.13410757]
[1766406512851,0.0566628,127.27,127.24,13.81410757]
[1766406513254,8.65719832,127.31,127.25,13.7559]
[1766406513458,8.65719832,127.31,127.25,6.68]
[1766406513756,6.57,127.33,127.27,6.68]
[1766406514163,0.05850487,127.31,127.29,0.04980295]
[1766406515360,0.05850487,127.31,127.25,106.4955]
[1766406516359,6.49850487,127.31,127.27,0.05449317]
[1766406517666,6.49850487,127.31,127.27,7.12939317]
[1766406517867,0.05850487,127.31,127.27,7.12939317]
[1766406518165,0.05850487,127.31,127.27,13.96939317]
[1766406520472,0.05850487,127.31,127.27,6.89449317]
[1766406521669,0.05850487,127.31,127.29,7.0738]
[1766406522269,0.05850487,127.31,127.28,7.0744]
[1766406524467,6.49850487,127.31,127.27,0.05449317]
[1766406526670,13.57130487,127.31,127.27,0.00449317]
[1766406526871,6.76,127.3,127.27,0.00449317]
[1766406527875,6.76,127.3,127.23,6.53]
[1766406529074,0.05106345,127.28,127.25,0.05156785]
[1766406529271,0.05106345,127.28,127.25,6.58156785]
[1766406529477,6.76,127.35,127.25,6.58156785]
[1766406529678,3.25939653,127.34,127.25,6.53]
[1766406529872,3.25939653,127.32,127.25,6.53]
[1766406530068,6.76,127.31,127.25,6.53]
[1766406530576,0.05456757,127.29,127.27,0.05657633]
[1766406531576,0.05456757,127.29,127.23,13.6067]
[1766406531774,6.81456757,127.29,127.23,13.6067]
[1766406532582,6.81456757,127.29,127.25,0.06029523]
[1766406537376,6.81456757,127.29,127.25,0.00029523]
[1766406540886,0.05456757,127.29,127.25,6.53029523]
[1766406544603,0.05456757,127.29,127.25,13.60629523]
[1766406551311,0.05456757,127.29,127.25,6.53029523]
[1766406563925,0.05456757,127.29,127.25,13.60639523]
[1766406564716,0.05456757,127.29,127.25,6.53029523]
[1766406566221,6.90456757,127.29,127.25,0.00029523]
[1766406567029,10.10939653,127.28,127.21,7.30044843]
[1766406567327,6.85,127.27,127.21,6.53]
[1766406568227,0.05075245,127.25,127.23,0.05806135]
[1766406571239,6.90075245,127.25,127.19,106.55044843]
[1766406571430,6.90075245,127.25,127.2,6.53]
[1766406572126,0.05075245,127.25,127.2,6.53]
[1766406572319,0.05075245,127.25,127.21,0.05171329]
[1766406573537,0.05075245,127.25,127.21,6.58171329]
[1766406575837,0.00075245,127.25,127.21,6.58171329]
[1766406586040,9.16290901,127.28,127.21,6.58171329]
[1766406586345,2.08810901,127.28,127.21,6.58171329]
[1766406587346,0.05683571,127.26,127.21,6.58171329]
[1766406594343,0.05683571,127.26,127.21,13.65991329]
[1766406594548,0.05683571,127.26,127.22,6.52]
[1766406596053,0.05683571,127.26,127.22,13.5975]
[1766406596251,2.08810901,127.29,127.23,6.52]
[1766406596548,8.31810901,127.29,127.23,6.52]
[1766406596953,2.08810901,127.29,127.24,6.52]
[1766406597159,0.05737371,127.28,127.25,6.57278161]
[1766406599552,6.23,127.34,127.25,6.57278161]
[1766406599859,8.31810901,127.33,127.27,6.52]
[1766406600651,0.06030347,127.31,127.29,0.05116404]
[1766406601941,0.06030347,127.31,127.29,0.00116404]
[1766406609065,0.00030347,127.31,127.29,6.20116404]
[1766406610654,0.00030347,127.31,127.29,0.00116404]
[1766406620488,8.60841248,127.31,127.26,6.2]
[1766406621184,8.60841248,127.31,127.26,13.2754]
[1766406621382,8.60841248,127.31,127.27,0.05124805]
[1766406622492,0.00030347,127.31,127.28,6.2]
[1766406624588,0.00030347,127.31,127.28,13.2744]
[1766406624885,0.00030347,127.31,127.29,6.2]
[1766406625389,0.00030347,127.31,127.29,13.2737]
[1766406625587,67.22,127.35,127.3,6.2]
[1766406625888,6.52,127.38,127.3,6.2]
[1766406626089,8.60810901,127.37,127.31,7.0727]
[1766406626689,0.04990484,127.35,127.33,0.05684526]
[1766406627281,6.52,127.39,127.33,0.05684526]
[1766406627580,8.60810901,127.39,127.33,0.05684526]
[1766406628295,0.05113816,127.37,127.33,0.05684526]
[1766406628477,6.57113816,127.37,127.33,0.05684526]
[1766406628674,8.65924717,127.37,127.33,0.05684526]
[1766406629085,2.13924717,127.37,127.33,0.05684526]
[1766406629386,0.05113816,127.37,127.33,0.05684526]
[1766406632195,0.05113816,127.37,127.33,9.21655427]
[1766406633986,0.05113816,127.37,127.34,2.08810901]
[1766406634186,0.05113816,127.37,127.33,0.05684526]
[1766406634890,6.34113816,127.37,127.33,0.05684526]
[1766406637982,5.72,127.36,127.3,7.0731]
[1766406638182,5.72,127.36,127.29,2.08810901]
[1766406638382,7.80810901,127.38,127.29,2.08810901]
[1766406638585,5.72,127.37,127.29,2.08810901]
[1766406638791,5.72,127.37,127.31,2.08810901]
[1766406638991,0.05619142,127.35,127.33,0.05015832]
[1766406643392,5.72,127.41,127.33,0.05015832]
[1766406643588,5.72,127.4,127.32,2.08810901]
[1766406644093,5.72,127.4,127.31,92.68]
[1766406644495,0.05275805,127.37,127.34,0.05161474]
[1766406647894,5.72,127.42,127.34,7.12221474]
[1766406648197,5.72,127.42,127.34,7.0706]
[1766406648891,0.05487762,127.39,127.37,0.0516451]
[1766406649092,0.05722608,127.39,127.37,0.0516451]
[1766406649698,0.05722608,127.39,127.37,0.0016451]
[1766406649895,5.77722608,127.39,127.34,7.0706]
[1766406650201,5.77722608,127.39,127.32,7.0718]
[1766406650401,5.72,127.44,127.32,113.26707604]
[1766406650606,5.72,127.41,127.31,202.7006]
[1766406650894,0.05139214,127.37,127.35,0.05756811]
[1766406653401,0.00139214,127.37,127.35,0.05756811]
[1766406654701,0.00139214,127.37,127.35,7.12806811]
[1766406657206,0.00139214,127.37,127.36,99.73]
[1766406664012,0.00139214,127.37,127.36,92.66]
[1766406667599,5.72,127.43,127.36,202.6352]
[1766406667811,5.46,127.46,127.36,202.6352]
[1766406668110,5.46,127.46,127.36,209.92669935]
[1766406668309,5.46,127.46,127.36,202.6352]
[1766406668508,0.05662092,127.42,127.4,0.05361951]
[1766406668811,0.05872505,127.42,127.4,92.69361951]
[1766406669819,0.05872505,127.42,127.4,0.05361951]
[1766406670016,5.51872505,127.42,127.38,92.64]
[1766406670604,5.51872505,127.42,127.35,14.36169935]
[1766406670806,5.51872505,127.42,127.33,7.29149935]
[1766406671114,3.25647604,127.43,127.3,113.27947604]
[1766406671115,0.05589811,127.39,127.36,0.05735885]
[1766406671512,5.46,127.38,127.31,7.29149935]
[1766406671719,5.46,127.36,127.28,7.29149935]
[1766406671914,5.46,127.34,127.27,7.29149935]
[1766406672116,5.46,127.32,127.25,7.29149935]
[1766406672416,3.25647604,127.33,127.25,7.29149935]
[1766406672417,5.46,127.29,127.25,92.64]
[1766406672720,5.46,127.29,127.24,92.64]
[1766406673021,109.9891,127.35,127.24,92.64]
[1766406673022,5.46,127.32,127.24,92.64]
[1766406673420,0.05007588,127.29,127.27,0.05650758]
[1766406675014,0.05007588,127.29,127.24,92.66]
[1766406675916,5.51007588,127.29,127.25,0.04959479]
[1766406676723,5.51007588,127.29,127.18,110.1275]
[1766406676724,5.46,127.28,127.18,110.1275]
[1766406676926,5.46,127.28,127.21,92.68]
[1766406677616,0.05962062,127.26,127.23,0.05993549]
[1766406681219,5.46,127.33,127.24,7.0764]
[1766406681423,5.46,127.33,127.25,92.7]
[1766406681924,5.46,127.32,127.25,92.7]
[1766406682318,0.06028427,127.3,127.27,0.05034746]
[1766406682517,5.52028427,127.3,127.27,0.05034746]
[1766406683527,5.52028427,127.3,127.27,0.00034746]
[1766406684115,5.46,127.35,127.27,0.00034746]
[1766406684326,5.46,127.35,127.26,110.0634]
[1766406684630,5.46,127.35,127.25,202.7705]
[1766406685016,5.46,127.34,127.27,7.0748]
[1766406685226,0.05126031,127.31,127.29,0.05665989]
[1766406688526,0.05126031,127.31,127.27,7.0748]
[1766406688929,0.05126031,127.31,127.25,99.7757]
[1766406689133,5.51126031,127.31,127.25,99.7757]
[1766406689529,5.51126031,127.31,127.27,0.0586514]
[1766406692648,8.39647604,127.3,127.18,110.1267]
[1766406692951,5.14,127.29,127.18,110.1267]
[1766406693540,0.05243782,127.25,127.22,0.05944534]
[1766406695141,5.19243782,127.25,127.17,92.72]
[1766406695346,5.14,127.25,127.17,92.72]
[1766406695553,4.97,127.24,127.17,92.72]
[1766406696149,0.05674181,127.22,127.19,0.05075606]
[1766406696651,5.02674181,127.22,127.19,0.00075606]
[1766406697444,0.05674181,127.22,127.19,0.00075606]
[1766406699950,5.02674181,127.22,127.19,0.00075606]
[1766406700356,5.02674181,127.22,127.15,7.0814]
[1766406701342,5.02674181,127.22,127.17,0.05902803]
[1766406701545,5.02674181,127.22,127.15,7.0814]
[1766406702153,5.02674181,127.22,127.14,110.1662]
[1766406702347,5.02674181,127.22,127.13,202.9142]
[1766406702348,4.97,127.22,127.13,202.9142]
[1766406702857,0.05697246,127.19,127.16,0.05620366]
[1766406705154,4.97,127.18,127.06,92.76]
[1766406705753,4.97,127.18,127.1,7.0843]
[1766406706052,0.05580149,127.15,127.13,0.05733625]
[1766406708942,0.05580149,127.15,127.09,7.0849]
[1766406709148,4.97,127.16,127.09,7.0849]
[1766406710159,0.05608995,127.14,127.11,0.05719326]
[1766406710361,4.97,127.18,127.11,0.05719326]
[1766406710657,4.97,127.18,127.1,2.0912065]
[1766406711457,4.97,127.24,127.14,2.0912065]
[1766406711655,4.97,127.24,127.16,2.0912065]
[1766406712459,0.05366472,127.21,127.19,0.05414126]
[1766406713354,0.00366472,127.21,127.19,0.05414126]
[1766406713953,2.0912065,127.27,127.19,0.05414126]
[1766406713954,4.97,127.27,127.19,0.05414126]
[1766406714151,4.97,127.27,127.19,110.1225]
[1766406714853,4.97,127.27,127.21,7.0782]
[1766406715060,0.0536057,127.25,127.23,0.05938909]
[1766406716059,0.0036057,127.25,127.23,0.05938909]
[1766406716251,97.75,127.29,127.23,0.05938909]
[1766406717257,0.05099916,127.27,127.23,0.05938909]
[1766406717654,0.05099916,127.27,127.23,7.13618909]
[1766406718258,4.97,127.32,127.24,7.0765]
[1766406719455,0.05204399,127.29,127.27,0.05181959]
[1766406720861,0.05204399,127.29,127.21,202.8838]
[1766406720862,0.05204399,127.29,127.21,92.78]
[1766406721068,4.97,127.31,127.22,7.0774]
[1766406721360,4.97,127.3,127.21,92.78]
[1766406721967,0.04946859,127.27,127.24,0.05144176]
[1766406722558,5.01946859,127.27,127.24,0.05144176]
[1766406723058,5.01946859,127.27,127.24,0.00144176]
[1766406723357,4.97,127.12,126.98,1.26357864]
[1766406723551,4.97,127.12,127.03,110.2631]
[1766406723751,4.97,127.12,127.02,110.2707]
[1766406723961,4.97,127.12,127.01,24.0010203]
[1766406724162,4.97,127.12,126.98,203.0636]
[1766406724163,4.97,127.1,126.98,203.0636]
[1766406724366,0.05141871,127.05,127.03,0.05337396]
[1766406724564,4.97,127.07,127.03,0.05592301]
[1766406724863,0.05413188,127.05,127.03,0.05592301]
[1766406725068,0.05413188,127.05,126.98,92.76]
[1766406725369,110.2086,127.1,126.98,92.76]
[1766406725764,5.59349007,127.08,126.98,92.76]
[1766406726165,0.06002461,127.04,126.98,92.76]
[1766406727266,0.06002461,127.04,127.0,0.05050613]
[1766406728167,4.96,127.07,127.0,0.05050613]
[1766406728955,0.05764597,127.05,127.0,0.05050613]
[1766406732089,4.96,127.1,127.0,0.05050613]
[1766406732270,4.96,127.1,126.99,110.2953]
[1766406733178,0.05948802,127.06,127.03,0.05423986]
[1766406733366,4.96,127.1,127.03,0.05423986]
[1766406734678,0.05655961,127.08,127.03,0.05423986]
[1766406734872,4.96,127.1,127.03,0.05423986]
[1766406735868,0.05826751,127.08,127.03,0.05423986]
[1766406736079,4.96,127.1,127.03,0.05423986]
[1766406737170,0.05795183,127.08,127.03,0.05423986]
[1766406741182,5.01795183,127.08,127.03,0.05423986]
[1766406741378,5.01795183,127.08,127.03,7.14233986]
[1766406741575,0.05795183,127.08,127.03,7.14233986]
[1766406742784,4.96,127.11,127.03,110.31363986]
[1766406742977,4.96,127.11,127.03,110.2594]
[1766406743881,0.05413535,127.08,127.06,0.05864256]
[1766406744086,4.96,127.11,127.06,0.05864256]
[1766406745083,0.04977433,127.1,127.06,0.05864256]
[1766406746590,4.96,127.11,127.06,0.05864256]
[1766406746774,4.96,127.15,127.06,0.05864256]
[1766406747085,4.96,127.15,127.04,203.1314]
[1766406747585,0.06000159,127.11,127.08,0.05731947]
[1766406747984,5.02000159,127.11,127.04,92.88]
[1766406749091,5.02000159,127.11,127.06,0.05030376]
[1766406750181,5.02000159,127.11,127.06,7.13690376]
[1766406750691,5.02000159,127.11,127.06,0.05030376]
[1766406752393,5.02000159,127.11,127.06,0.00030376]
[1766406753096,5.75,127.1,127.01,92.86]
[1766406753881,5.75,127.09,127.02,7.0888]
[1766406754092,0.05167741,127.07,127.04,0.05892615]
[1766406754891,5.80167741,127.07,127.04,0.05892615]
[1766406755398,5.80167741,127.07,127.01,92.86]
[1766406756200,5.80167741,127.07,127.02,7.0887]
[1766406756389,5.80167741,127.07,127.03,0.05181684]
[1766406757690,0.05167741,127.07,127.03,7.14001684]
[1766406758893,0.05167741,127.07,127.03,0.05181684]
[1766406759096,5.59349007,127.14,127.04,110.2525]
[1766406759402,5.59349007,127.14,127.05,92.88]
[1766406759902,2.09280557,127.13,127.05,92.88]
[1766406760101,0.05340451,127.11,127.08,7.13746262]
[1766406760397,2.09280557,127.15,127.08,0.05216262]
[1766406760699,110.0975,127.23,127.11,7.0837]
[1766406760700,2.09280557,127.17,127.11,7.0837]
[1766406760999,8.00280557,127.17,127.11,7.0837]
[1766406761193,5.91,127.17,127.11,7.0837]
[1766406761403,5.91,127.16,127.11,7.0837]
[1766406761597,0.05337362,127.15,127.12,0.04980117]
[1766406761806,8.05617919,127.15,127.09,99.9646]
[1766406762099,5.96337362,127.15,127.09,99.9646]
[1766406762801,5.91,127.14,127.11,0.00430791]
[1766406762994,5.91,127.14,127.05,110.2453]
[1766406763196,5.91,127.14,127.06,203.1144]
[1766406763403,5.91,127.14,127.09,7.0849]
[1766406763607,5.91,127.17,127.08,110.2193]
[1766406763794,5.91,127.17,127.11,7.0835]
[1766406764106,0.00472503,127.15,127.13,0.05349598]
[1766406764401,5.91,127.23,127.14,7.0816]
[1766406764600,5.91,127.25,127.15,203.0393]
[1766406765100,5.91,127.25,127.15,92.88]
[1766406765303,0.0601171,127.21,127.19,0.05416262]
[1766406765500,0.04996897,127.21,127.19,0.00223207]
[1766406766196,5.91,127.26,127.19,0.00223207]
[1766406766396,5.91,127.26,127.15,92.88]
[1766406767403,5.96368066,127.22,127.19,0.00428052]
[1766406768103,5.96368066,127.22,127.09,205.4338]
[1766406768303,5.91,127.21,127.1,2.37]
[1766406769106,0.0520937,127.17,127.14,0.05541351]
[1766406769410,0.0520937,127.17,127.14,0.05496642]
[1766406769601,0.0020937,127.17,127.14,0.05496642]
[1766406769808,5.91,127.21,127.14,2.48496642]
[1766406770606,92.82,127.23,127.14,95.32496642]
[1766406770809,92.82,127.23,127.14,95.27]
[1766406771010,0.05307267,127.2,127.17,0.05987271]
[1766406773315,5.91,127.25,127.17,2.59987271]
[1766406773503,5.91,127.25,127.17,2.54]
[1766406774410,0.05288616,127.22,127.2,0.05129459]
[1766406774811,0.05288616,127.22,127.2,0.00129459]
[1766406777121,0.00288616,127.22,127.2,0.00129459]
[1766406780420,5.91,127.27,127.2,0.00129459]
[1766406780615,5.91,127.27,127.2,7.07989459]
[1766406780822,5.91,127.27,127.2,2.93129459]
[1766406781416,0.05954901,127.25,127.2,2.93129459]
[1766406782012,0.05954901,127.25,127.21,7.0782]
[1766406782511,5.91,127.3,127.22,2.97]
[1766406782712,5.91,127.33,127.24,2.97]
[1766406782918,5.91,127.4,127.28,2.97]
[1766406783113,5.91,127.42,127.31,112.9884]
[1766406783312,5.91,127.42,127.33,2.97]
[1766406783507,109.8702,127.49,127.32,202.8086]
[1766406783508,5.91,127.49,127.37,3.01]
[1766406783720,5.91,127.49,127.38,3.01]
[1766406783917,5.91,127.49,127.39,112.9581]
[1766406784119,0.00236796,127.44,127.42,0.05098433]
[1766406784316,5.91,127.49,127.42,0.05098433]
[1766406784511,5.91,127.53,127.42,0.05098433]
[1766406784713,5.91,127.53,127.42,3.06098433]
[1766406784911,5.91,127.49,127.38,3.01]
[1766406785217,5.91,127.49,127.4,95.79]
[1766406785415,0.04802498,127.45,127.42,0.0574879]
[1766406786415,5.91,127.49,127.42,0.0574879]
[1766406786824,6.55,127.48,127.38,92.74]
[1766406787420,6.55,127.51,127.41,3.13]
[1766406787719,0.0574879,127.47,127.45,0.05598391]
[1766406788028,6.55,127.6,127.47,113.0497]
[1766406788221,6.55,127.6,127.48,95.91]
[1766406788419,6.55,127.6,127.49,113.07]
[1766406788617,6.55,127.59,127.48,92.74]
[1766406788923,6.55,127.58,127.52,0.05678245]
[1766406789121,6.55,127.58,127.54,0.00365203]
[1766406789316,6.55,127.56,127.46,69.62]
[1766406789624,109.774,127.6,127.48,3.3]
[1766406789625,6.55,127.6,127.48,3.3]
[1766406789824,202.4722,127.63,127.49,3.3]
[1766406790027,6.55,127.67,127.55,3.3]
[1766406790221,6.55,127.67,127.57,3.3]
[1766406790630,0.00365203,127.62,127.6,0.06012809]
[1766406790928,6.55,127.67,127.6,0.06012809]
[1766406791322,3.46492791,127.68,127.6,3.35012809]
[1766406791534,10.01492791,127.68,127.6,0.06012809]
[1766406791836,109.6703,127.72,127.6,0.06012809]
[1766406791837,202.2921,127.77,127.61,6.63]
[1766406792030,109.6569,127.74,127.63,0.05981645]
[1766406792230,109.6747,127.72,127.6,92.68]
[1766406792437,109.6632,127.73,127.67,0.05424718]
[1766406792631,109.6569,127.74,127.67,0.05424718]
[1766406792937,109.6395,127.76,127.67,6.68424718]
[1766406793124,109.6395,127.76,127.64,99.29]
[1766406793329,109.6532,127.74,127.64,99.29]
[1766406793538,109.6395,127.76,127.64,99.29]
[1766406793539,116.6874,127.76,127.64,99.29]
[1766406793726,6.55,127.75,127.65,6.63]